lending/lending_fUSD_20240622
["ID","MTS","AMOUNT","RATE_DAILY","PERIOD"]
[330131585,1719029557262,-2000.0,0.00020821,2]
[330131586,1719029557272,-500.0,0.00020821,2]
[330131587,1719029557282,-1605.63,0.00020821,2]
[330131588,1719029557292,-7264.75,0.00020821,2]
[330131589,1719029557302,-355.9639392,0.00020821,2]
[330131590,1719029557311,-500.0,0.00020821,2]
[330131591,1719029557321,-500.0,0.00020821,2]
[330131592,1719029557331,-1242.69,0.00020821,2]
[330131593,1719029557341,-500.0,0.00020821,2]
[330131594,1719029557351,-566.19,0.00020821,2]
[330131595,1719029557360,-3081.46,0.00020821,2]
[330131596,1719029557371,-500.0,0.00020821,2]
[330131597,1719029557381,-926.72,0.00020821,2]
[330131598,1719029557392,-500.0,0.00020821,2]
[330131599,1719029557402,-653.89,0.00020821,2]
[330131600,1719029557412,-500.0,0.00020821,2]
[330131601,1719029557421,-714.2,0.00020821,2]
[330131602,1719029557430,-8833.17,0.00020821,2]
[330131603,1719029557439,-680.38,0.00020821,2]
[330131604,1719029557448,-500.0,0.00020821,2]
[330131605,1719029557458,-3271.44,0.00020821,2]
[330131606,1719029557467,-6179.79,0.00020821,2]
[330131607,1719029557477,-1060.68,0.00020821,2]
[330131608,1719029557487,-500.0,0.00020821,2]
[330131609,1719029557497,-500.0,0.00020821,2]
[330131610,1719029557507,-500.0,0.00020821,2]
[330131611,1719029557517,-2906.59,0.00020821,2]
[330131612,1719029557526,-1330.36,0.00020821,2]
[330131613,1719029557536,-1111.21,0.00020821,2]
[330131614,1719029557545,-500.0,0.00020821,2]
[330131615,1719029557555,-8174.46,0.00020821,2]
[330131616,1719029557566,-500.0,0.00020821,2]
[330131617,1719029557577,-500.0,0.00020821,2]
[330131618,1719029557587,-500.0,0.00020821,2]
[330131619,1719029557597,-582.55,0.00020821,2]
[330131620,1719029557606,-500.0,0.00020821,2]
[330131621,1719029557616,-500.0,0.00020821,2]
[330131622,1719029557626,-500.0,0.00020821,2]
[330131623,1719029557636,-2344.82,0.00020821,2]
[330131624,1719029557650,-500.0,0.00020821,2]
[330131625,1719029557660,-500.0,0.00020821,2]
[330131626,1719029557670,-1547.0,0.00020821,2]
[330131627,1719029557681,-967.14,0.00020821,2]
[330131628,1719029557690,-2631.33,0.00020821,2]
[330131629,1719029557700,-500.0,0.00020821,2]
[330131630,1719029557710,-45117.28,0.00020821,2]
[330131631,1719029557719,-5049.91,0.00020821,2]
[330131632,1719029557730,-500.0,0.00020821,2]
[330131633,1719029557739,-571.63,0.00020821,2]
[330131634,1719029557749,-500.0,0.00020821,2]
[330131635,1719029557758,-3013.17,0.00020821,2]
[330131636,1719029557768,-552.92,0.00020821,2]
[330131637,1719029557779,-1252.07,0.00020821,2]
[330131638,1719029558099,-794.91,0.00020821,2]
[330131639,1719029558114,-500.0,0.00020821,2]
[330131640,1719029558124,-557.36,0.00020821,2]
[330131641,1719029558134,-500.0,0.00020821,2]
[330131642,1719029558144,-500.0,0.00020821,2]
[330131643,1719029558154,-500.0,0.00020821,2]
[330131644,1719029558163,-4771.24,0.00020821,2]
[330131645,1719029558173,-500.0,0.00020821,2]
[330131646,1719029558182,-1065.32,0.00020821,2]
[330131647,1719029558192,-4132.74,0.00020821,2]
[330131648,1719029558202,-500.0,0.00020821,2]
[330131649,1719029558212,-701.82,0.00020821,2]
[330131650,1719029558222,-500.0,0.00020821,2]
[330131651,1719029558232,-1639.59,0.00020821,2]
[330131652,1719029558242,-500.0,0.00020821,2]
[330131653,1719029558252,-648.44,0.00020821,2]
[330131654,1719029558262,-500.0,0.00020821,2]
[330131655,1719029558272,-500.0,0.00020821,2]
[330131656,1719029558281,-500.0,0.00020821,2]
[330131657,1719029558291,-639.43,0.00020821,2]
[330131658,1719029558301,-500.0,0.00020821,2]
[330131659,1719029558311,-973.5,0.00020821,2]
[330131660,1719029558320,-503.3023865,0.00020821,2]
[330131661,1719029558330,-500.0,0.00020821,2]
[330131662,1719029558340,-500.0,0.00020821,2]
[330131663,1719029558350,-500.0,0.00020821,2]
[330131664,1719029558360,-1438.59,0.00020821,2]
[330131665,1719029558370,-1728.72,0.00020821,2]
[330131666,1719029558381,-500.0,0.00020821,2]
[330131667,1719029558391,-11144.02,0.00020821,2]
[330131668,1719029558401,-1836.13,0.00020821,2]
[330131669,1719029558410,-807.92,0.00020821,2]
[330131670,1719029558420,-500.0,0.00020821,2]
[330131671,1719029558428,-502.10935505,0.00020821,2]
[330131672,1719029558438,-42950.1,0.00020821,2]
[330131673,1719029558447,-527.67,0.00020821,2]
[330131674,1719029558457,-579.07,0.00020821,2]
[330131675,1719029558467,-500.0,0.00020821,2]
[330131676,1719029558479,-500.0,0.00020821,2]
[330131677,1719029558489,-500.0,0.00020821,2]
[330131678,1719029558499,-539.65,0.00020821,2]
[330131679,1719029558509,-10000.05,0.00020821,2]
[330131680,1719029558519,-777.59,0.00020821,2]
[330131681,1719029558529,-6022.88,0.00020821,2]
[330131682,1719029558538,-3582.0,0.00020821,2]
[330131683,1719029558548,-652.28,0.00020821,2]
[330131684,1719029558557,-1313.14,0.00020821,2]
[330131685,1719029558567,-1021.62,0.00020821,2]
[330131686,1719029558577,-2072.64,0.00020821,2]
[330131687,1719029558587,-1526.34,0.00020821,2]
[330131688,1719029558597,-500.0,0.00020821,2]
[330131689,1719029558607,-500.0,0.00020821,2]
[330131690,1719029558617,-666.33,0.00020821,2]
[330131691,1719029558626,-1091.74,0.00020821,2]
[330131692,1719029558636,-580.61,0.00020821,2]
[330131693,1719029558646,-612.26143758,0.00020821,2]
[330131694,1719029558655,-500.0,0.00020821,2]
[330131695,1719029558664,-1810.43,0.00020821,2]
[330131696,1719029558674,-500.0,0.00020821,2]
[330131697,1719029558684,-1356.47,0.00020821,2]
[330131698,1719029558694,-1003.26,0.00020821,2]
[330131699,1719029558704,-3027.04,0.00020821,2]
[330131700,1719029558714,-1514.57,0.00020821,2]
[330131701,1719029558723,-1047.72,0.00020821,2]
[330131702,1719029558732,-5223.38,0.00020821,2]
[330131703,1719029558742,-500.0,0.00020821,2]
[330131704,1719029558751,-948.94,0.00020821,2]
[330131705,1719029558761,-500.0,0.00020821,2]
[330131706,1719029558771,-542.14,0.00020821,2]
[330131707,1719029558781,-500.0,0.00020821,2]
[330131708,1719029558791,-775.43,0.00020821,2]
[330131709,1719029558800,-500.0,0.00020821,2]
[330131710,1719029558809,-2452.36,0.00020821,2]
[330131711,1719029558819,-500.0,0.00020821,2]
[330131712,1719029558829,-538.38,0.00020821,2]
[330131713,1719029558839,-2229.47,0.00020821,2]
[330131714,1719029558848,-515.97675756,0.00020821,2]
[330131715,1719029558859,-2772.69,0.00020821,2]
[330131716,1719029558869,-573.8,0.00020821,2]
[330131717,1719029558878,-743.01,0.00020821,2]
[330131718,1719029558888,-500.0,0.00020821,2]
[330131719,1719029558900,-500.0,0.00020821,2]
[330131720,1719029558916,-651.86,0.00020821,2]
[330131721,1719029558926,-3047.53,0.00020821,2]
[330131722,1719029558935,-504.23,0.00020821,2]
[330131723,1719029558946,-506.18912203,0.00020821,2]
[330131724,1719029558955,-496.85673368,0.00020821,2]
[330131725,1719029558965,-500.31,0.00020821,2]
[330131726,1719029558975,-500.0,0.00020821,2]
[330131727,1719029558987,-4313.25,0.00020821,2]
[330131728,1719029558997,-833.81,0.00020821,2]
[330131729,1719029559007,-468.36951226,0.00020821,2]
[330131730,1719029559016,-1067.28,0.00020821,2]
[330131731,1719029559026,-769.69,0.00020821,2]
[330131732,1719029559036,-3200.7,0.00020821,2]
[330131733,1719029559045,-7011.9,0.00020821,2]
[330131734,1719029559054,-500.0,0.00020821,2]
[330131735,1719029559064,-475.70409423,0.00020821,2]
[330131736,1719029559075,-16090.35,0.00020821,2]
[330131737,1719029559085,-500.0,0.00020821,2]
[330131738,1719029559094,-500.0,0.00020821,2]
[330131739,1719029559104,-502.4252497,0.00020821,2]
[330131740,1719029559114,-500.0,0.00020821,2]
[330131741,1719029559124,-1364.1,0.00020821,2]
[330131742,1719029559133,-506.58863845,0.00020821,2]
[330131743,1719029559143,-14109.18,0.00020821,2]
[330131744,1719029559155,-7200.3,0.00020821,2]
[330131745,1719029559166,-6512.45,0.00020821,2]
[330131746,1719029559175,-500.0,0.00020821,2]
[330131747,1719029559185,-5584.86,0.00020821,2]
[330131748,1719029559195,-1960.22,0.00020821,2]
[330131749,1719029559205,-699.9,0.00020821,2]
[330131750,1719029559214,-500.0,0.00020821,2]
[330131751,1719029559224,-2796.37,0.00020821,2]
[330131752,1719029559234,-597.61,0.00020821,2]
[330131753,1719029559243,-500.0,0.00020821,2]
[330131754,1719029559253,-519.9,0.00020821,2]
[330131755,1719029559263,-646.35,0.00020821,2]
[330131756,1719029559272,-500.0,0.00020821,2]
[330131757,1719029559282,-544.7,0.00020821,2]
[330131758,1719029559292,-500.0,0.00020821,2]
[330131759,1719029559301,-3860.84,0.00020821,2]
[330131760,1719029559310,-1622.18,0.00020821,2]
[330131761,1719029559320,-607.04240792,0.00020821,2]
[330131762,1719029559330,-500.0,0.00020821,2]
[330131763,1719029559340,-1307.09,0.00020821,2]
[330131764,1719029559349,-975.65,0.00020821,2]
[330131765,1719029559359,-500.0,0.00020821,2]
[330131766,1719029559368,-500.0,0.00020821,2]
[330131767,1719029559377,-752.39,0.00020821,2]
[330131768,1719029559387,-1117.33,0.00020821,2]
[330131769,1719029559398,-514.5,0.00020821,2]
[330131770,1719029559407,-500.0,0.00020821,2]
[330131771,1719029559417,-500.0,0.00020821,2]
[330131772,1719029559427,-562.83,0.00020821,2]
[330131773,1719029559437,-739.7,0.00020821,2]
[330131774,1719029559446,-2029.47,0.00020821,2]
[330131775,1719029559456,-500.0,0.00020821,2]
[330131776,1719029559466,-1221.74,0.00020821,2]
[330131777,1719029559476,-977.24,0.00020821,2]
[330131778,1719029559486,-500.0,0.00020821,2]
[330131779,1719029559495,-500.0,0.00020821,2]
[330131780,1719029559505,-855.03,0.00020821,2]
[330131781,1719029559515,-2316.0,0.00020821,2]
[330131782,1719029559525,-207.97322042,0.00020821,2]
[330131783,1719029559534,-571.64147043,0.00020821,2]
[330131784,1719029559544,-6344.73,0.00020821,2]
[330131785,1719029559553,-500.0,0.00020821,2]
[330131786,1719029559563,-500.0,0.00020821,2]
[330131787,1719029559573,-623.37,0.00020821,2]
[330131788,1719029559583,-2090.46,0.00020821,2]
[330131789,1719029559593,-688.05,0.00020821,2]
[330131790,1719029559603,-596.22,0.00020821,2]
[330131791,1719029559612,-2308.34,0.00020821,2]
[330131792,1719029559621,-500.0,0.00020821,2]
[330131793,1719029559631,-500.0,0.00020821,2]
[330131794,1719029559641,-944.79,0.00020821,2]
[330131795,1719029559652,-500.0,0.00020821,2]
[330131796,1719029559662,-500.0,0.00020821,2]
[330131797,1719029559671,-7152.31,0.00020821,2]
[330131798,1719029559681,-665.12,0.00020821,2]
[330131799,1719029559691,-955.17,0.00020821,2]
[330131800,1719029559700,-599.72829332,0.00020821,2]
[330131801,1719029559710,-500.0,0.00020821,2]
[330131802,1719029559720,-30017.57,0.00020821,2]
[330131803,1719029559729,-8494.36,0.00020821,2]
[330131804,1719029559739,-1102.94,0.00020821,2]
[330131805,1719029559749,-574.34,0.00020821,2]
[330131806,1719029559759,-500.0,0.00020821,2]
[330131807,1719029559768,-573.08,0.00020821,2]
[330131808,1719029559778,-1893.07,0.00020821,2]
[330131809,1719029559787,-503.45,0.00020821,2]
[330131810,1719029559797,-5140.11,0.00020821,2]
[330131811,1719029559807,-584.96,0.00020821,2]
[330131812,1719029559816,-500.0,0.00020821,2]
[330131813,1719029559825,-1046.27,0.00020821,2]
[330131814,1719029559834,-500.0,0.00020821,2]
[330131815,1719029559844,-843.24,0.00020821,2]
[330131816,1719029559854,-500.0,0.00020821,2]
[330131817,1719029559863,-676.7,0.00020821,2]
[330131818,1719029559872,-583.73,0.00020821,2]
[330131819,1719029559882,-1220.48,0.00020821,2]
[330131820,1719029559892,-2257.37,0.00020821,2]
[330131821,1719029559904,-500.0,0.00020821,2]
[330131822,1719029559915,-500.0,0.00020821,2]
[330131823,1719029559924,-500.0,0.00020821,2]
[330131824,1719029559934,-500.0,0.00020821,2]
[330131825,1719029559944,-604.60474459,0.00020821,2]
[330131826,1719029559953,-4933.08,0.00020821,2]
[330131827,1719029559963,-500.0,0.00020821,2]
[330131828,1719029559973,-2452.47,0.00020821,2]
[330131829,1719029559985,-914.01,0.00020821,2]
[330131830,1719029559995,-500.0,0.00020821,2]
[330131831,1719029560004,-2374.57,0.00020821,2]
[330131832,1719029560013,-522.12,0.00020821,2]
[330131833,1719029560023,-500.0,0.00020821,2]
[330131834,1719029560031,-500.0,0.00020821,2]
[330131835,1719029560041,-500.0,0.00020821,2]
[330131836,1719029560050,-500.0,0.00020821,2]
[330131837,1719029560060,-500.0,0.00020821,2]
[330131838,1719029560069,-1855.06,0.00020821,2]
[330131839,1719029560078,-500.0,0.00020821,2]
[330131840,1719029560087,-500.0,0.00020821,2]
[330131841,1719029560097,-652.85,0.00020821,2]
[330131842,1719029560106,-8465.3,0.00020821,2]
[330131843,1719029560116,-500.0,0.00020821,2]
[330131844,1719029560126,-662.09,0.00020821,2]
[330131845,1719029560137,-6526.35,0.00020821,2]
[330131846,1719029560147,-500.0,0.00020821,2]
[330131847,1719029560156,-2326.67,0.00020821,2]
[330131848,1719029560166,-500.0,0.00020821,2]
[330131849,1719029560175,-966.07,0.00020821,2]
[330131850,1719029560185,-4319.97,0.00020821,2]
[330131851,1719029560195,-500.0,0.00020821,2]
[330131852,1719029560204,-500.0,0.00020821,2]
[330131853,1719029560214,-1131.16,0.00020821,2]
[330131854,1719029560224,-500.0,0.00020821,2]
[330131855,1719029560234,-3087.23,0.00020821,2]
[330131856,1719029560243,-500.0,0.00020821,2]
[330131857,1719029560252,-4110.59,0.00020821,2]
[330131858,1719029560262,-500.0,0.00020821,2]
[330131859,1719029560272,-732.01,0.00020821,2]
[330131860,1719029560282,-9870.7,0.00020821,2]
[330131861,1719029560291,-925.17,0.00020821,2]
[330131862,1719029560300,-674.93,0.00020821,2]
[330131863,1719029560310,-500.0,0.00020821,2]
[330131864,1719029560320,-500.0,0.00020821,2]
[330131865,1719029560330,-500.0,0.00020821,2]
[330131866,1719029560339,-3851.34,0.00020821,2]
[330131867,1719029560349,-1150.65,0.00020821,2]
[330131868,1719029560359,-1381.02,0.00020821,2]
[330131869,1719029560368,-800.41,0.00020821,2]
[330131870,1719029560378,-1977.8,0.00020821,2]
[330131871,1719029560387,-500.0,0.00020821,2]
[330131872,1719029560399,-500.0,0.00020821,2]
[330131873,1719029560407,-925.19,0.00020821,2]
[330131874,1719029560416,-500.0,0.00020821,2]
[330131875,1719029560426,-622.49641239,0.00020821,2]
[330131876,1719029560438,-500.0,0.00020821,2]
[330131877,1719029560447,-500.0,0.00020821,2]
[330131878,1719029560457,-9267.92,0.00020821,2]
[330131879,1719029560466,-500.0,0.00020821,2]
[330131880,1719029560475,-3343.38,0.00020821,2]
[330131881,1719029560592,-22119.48,0.00020821,2]
[330131882,1719029560602,-504.97,0.00020821,2]
[330131883,1719029560611,-804.99,0.00020821,2]
[330131884,1719029560620,-500.0,0.00020821,2]
[330131885,1719029560630,-671.46,0.00020821,2]
[330131886,1719029560640,-974.87,0.00020821,2]
[330131887,1719029560651,-793.66,0.00020821,2]
[330131888,1719029560660,-500.0,0.00020821,2]
[330131889,1719029560670,-1537.47,0.00020821,2]
[330131890,1719029560680,-5649.32,0.00020821,2]
[330131891,1719029560689,-744.22,0.00020821,2]
[330131892,1719029560699,-4184.3,0.00020821,2]
[330131893,1719029560708,-625.09,0.00020821,2]
[330131894,1719029560717,-1205.42,0.00020821,2]
[330131895,1719029560727,-1206.01,0.00020821,2]
[330131896,1719029560737,-545.8370588,0.00020821,2]
[330131897,1719029560746,-783.67,0.00020821,2]
[330131898,1719029560756,-535.87,0.00020821,2]
[330131899,1719029560765,-663.27,0.00020821,2]
[330131900,1719029560775,-542.26,0.00020821,2]
[330131901,1719029560784,-700.08,0.00020821,2]
[330131902,1719029560794,-500.0,0.00020821,2]
[330131903,1719029560804,-2308.75,0.00020821,2]
[330131904,1719029560813,-8242.74,0.00020821,2]
[330131905,1719029560823,-822.65,0.00020821,2]
[330131906,1719029560834,-1883.61,0.00020821,2]
[330131907,1719029560843,-993.9,0.00020821,2]
[330131908,1719029560854,-3366.15,0.00020821,2]
[330131909,1719029560863,-500.0,0.00020821,2]
[330131910,1719029560873,-500.0,0.00020821,2]
[330131911,1719029560883,-17752.55,0.00020821,2]
[330131912,1719029560893,-500.0,0.00020821,2]
[330131913,1719029560906,-1324.8,0.00020821,2]
[330131914,1719029560917,-500.0,0.00020821,2]
[330131915,1719029560926,-1344.71,0.00020821,2]
[330131916,1719029560936,-500.0,0.00020821,2]
[330131917,1719029560947,-843.65,0.00020821,2]
[330131918,1719029560957,-1140.74,0.00020821,2]
[330131919,1719029560967,-709.39,0.00020821,2]
[330131920,1719029560977,-758.95,0.00020821,2]
[330131921,1719029560989,-500.0,0.00020821,2]
[330131922,1719029560999,-500.0,0.00020821,2]
[330131923,1719029561008,-2201.45,0.00020821,2]
[330131924,1719029561018,-3047.73,0.00020821,2]
[330131925,1719029561027,-917.49,0.00020821,2]
[330131926,1719029561037,-514.9,0.00020821,2]
[330131927,1719029561047,-517.09,0.00020821,2]
[330131928,1719029561056,-500.0,0.00020821,2]
[330131929,1719029561066,-3709.29,0.00020821,2]
[330131930,1719029561075,-3984.66,0.00020821,2]
[330131931,1719029561085,-500.0,0.00020821,2]
[330131932,1719029561095,-3817.97,0.00020821,2]
[330131933,1719029561104,-500.0,0.00020821,2]
[330131934,1719029561113,-500.0,0.00020821,2]
[330131935,1719029561122,-500.0,0.00020821,2]
[330131936,1719029561131,-566.03,0.00020821,2]
[330131937,1719029561141,-1278.74,0.00020821,2]
[330131938,1719029561151,-1187.66,0.00020821,2]
[330131939,1719029561161,-7830.86,0.00020821,2]
[330131940,1719029561170,-500.0,0.00020821,2]
[330131941,1719029561180,-500.0,0.00020821,2]
[330131942,1719029561189,-1333.18,0.00020821,2]
[330131943,1719029561199,-500.0,0.00020821,2]
[330131944,1719029561209,-513.36,0.00020821,2]
[330131945,1719029561218,-521.04,0.00020821,2]
[330131946,1719029561228,-786.02,0.00020821,2]
[330131947,1719029561237,-1237.8,0.00020821,2]
[330131948,1719029561246,-500.0,0.00020821,2]
[330131949,1719029561256,-500.0,0.00020821,2]
[330131950,1719029561265,-2391.59,0.00020821,2]
[330131951,1719029561274,-654.36,0.00020821,2]
[330131952,1719029561284,-1871.94,0.00020821,2]
[330131953,1719029561293,-29907.95,0.00020821,2]
[330131954,1719029561302,-3600.9,0.00020821,2]
[330131955,1719029561312,-1834.84,0.00020821,2]
[330131956,1719029561321,-500.0,0.00020821,2]
[330131957,1719029561331,-640.93,0.00020821,2]
[330131958,1719029561342,-500.0,0.00020821,2]
[330131959,1719029561352,-1067.46,0.00020821,2]
[330131960,1719029561361,-3919.91,0.00020821,2]
[330131961,1719029561371,-2704.91,0.00020821,2]
[330131962,1719029561381,-541.7,0.00020821,2]
[330131963,1719029561391,-1546.65,0.00020821,2]
[330131964,1719029561402,-614.6724167,0.00020821,2]
[330131965,1719029561413,-649.81,0.00020874,2]
[330131966,1719029561422,-155.0,0.00020889,2]
[330131967,1719029561432,-1540.34768269,0.00020899,2]
[330131968,1719029561442,-1816.74239268,0.00020899,2]
[330131969,1719029561451,-578.0,0.000209,3]
[330131970,1719029561460,-155.0,0.00020995,2]
[330131971,1719029561470,-2480.41345469,0.00020997,2]
[330131972,1719029561480,-1179.40564163,0.00020997,2]
[330131973,1719029561490,-155.0,0.00020997,2]
[330131974,1719029561500,-177860.97929176,0.00020999,2]
[330131975,1719029562664,-417440.85154119,0.00020999,2]
[330131976,1719029562676,-123950.79990636,0.00020999,2]
[330131977,1719029562687,-15074.37812401,0.00020999,2]
[330131978,1719029562713,-7976.82680112,0.00020999,2]
[330131979,1719029562725,-3003.39578334,0.00020999,2]
[330131980,1719029562736,-934.80926867,0.00020999,2]
[330131981,1719029562748,-681.43362743,0.00020999,2]
[330131982,1719029562760,-4371.83669694,0.00020999,2]
[330131983,1719029562771,-337.33893767,0.00020999,2]
[330131984,1719029562792,-199000.73663616,0.00020999,2]
[330131985,1719029562803,-14693.69462396,0.00020999,2]
[330131986,1719029562913,-1301.181042,0.00019178,2]
[330131987,1719029562922,-164.330147,0.00019178,2]
[330131988,1719029562932,-2420.17862745,0.00020999,2]
[330131989,1719029562943,-563.21663336,0.00020999,2]
[330131990,1719029562956,-4130.30516589,0.00020999,2]
[330131991,1719029563691,-163.09184798,0.00013999,2]
[330131992,1719029563701,-219.242085,0.00017327,2]
[330131993,1719029563711,-1301.181042,0.00017327,2]
[330131994,1719029563721,-1068.0,0.00017437,2]
[330131995,1719029563730,-219.242085,0.00018,2]
[330131996,1719029563739,-1301.181042,0.00018,2]
[330131997,1719029563748,-219.242085,0.00018978,2]
[330131998,1719029563758,-1301.181042,0.00019178,2]
[330131999,1719029563767,-164.330147,0.00019178,2]
[330132000,1719029563776,-1301.181042,0.00019178,2]
[330132001,1719029563785,-164.330147,0.00019178,2]
[330132002,1719029563794,-1301.181042,0.00019178,2]
[330132003,1719029563803,-164.330147,0.00019178,2]
[330132004,1719029563812,-500.0,0.00019178,2]
[330132005,1719029563821,-219.242085,0.00019178,2]
[330132006,1719029563830,-164.330147,0.00019178,2]
[330132007,1719029563839,-219.242085,0.00019178,2]
[330132008,1719029563848,-1301.181042,0.00019178,2]
[330132009,1719029563857,-219.242085,0.00019178,2]
[330132010,1719029563866,-219.242085,0.00019178,2]
[330132011,1719029563875,-2080.54320902,0.00019277,2]
[330132012,1719029563885,-500.0,0.00019726,2]
[330132013,1719029563894,-500.0,0.0002,2]
[330132014,1719029563909,-3633.45,0.00020273,2]
[330132015,1719029563917,-500.0,0.00020273,2]
[330132016,1719029563926,-1068.0,0.00020437,2]
[330132017,1719029563938,-3633.45,0.00020547,2]
[330132018,1719029563948,-500.0,0.00020547,2]
[330132019,1719029563957,-938.41291856,0.00020821,2]
[330132020,1719029563988,-264.817082,0.00017327,2]
[330132021,1719029563999,-2695.03708144,0.00020821,2]
[330132022,1719029564008,-500.0,0.00020821,2]
[330132023,1719029564018,-753.48832543,0.00020967,2]
[330132024,1719029564028,-981716.23708023,0.00020999,2]
[330132025,1719029564041,-184993.6283448,0.00020999,2]
[330132026,1719029564903,-557.0,0.00014,2]
[330132027,1719029564917,-17.09118522,0.00017327,2]
[330132028,1719029564930,-202.15089978,0.00017327,2]
[330132029,1719029564940,-264.817082,0.00018,2]
[330132030,1719029564951,-219.242085,0.00018,2]
[330132031,1719029564961,-528.8454615,0.00018978,2]
[330132032,1719029564981,-360.44824083,0.00018978,2]
[330132033,1719029564996,-411.88733967,0.00018978,2]
[330132034,1719029565006,-264.817082,0.00018978,2]
[330132035,1719029565016,-219.242085,0.00018978,2]
[330132036,1719029565025,-219.242085,0.00019178,2]
[330132037,1719029565035,-1301.181042,0.00019178,2]
[330132038,1719029565044,-219.242085,0.00019178,2]
[330132039,1719029565054,-60.71153643,0.00019178,2]
[330132040,1719029565066,-1240.46950557,0.00019178,2]
[330132041,1719029565075,-219.242085,0.00019178,2]
[330132042,1719029565084,-500.0,0.00019178,2]
[330132043,1719029565094,-264.817082,0.00019178,2]
[330132044,1719029565103,-1301.181042,0.00019178,2]
[330132045,1719029565113,-264.817082,0.00019178,2]
[330132046,1719029565123,-500.0,0.00019178,2]
[330132047,1719029565133,-264.817082,0.00019178,2]
[330132048,1719029565143,-1301.181042,0.00019178,2]
[330132049,1719029565153,-264.817082,0.00019178,2]
[330132050,1719029565164,-219.242085,0.00019178,2]
[330132051,1719029565174,-500.0,0.00019178,2]
[330132052,1719029565184,-500.0,0.00019178,2]
[330132053,1719029565194,-1301.181042,0.00019178,2]
[330132054,1719029565203,-219.242085,0.00019178,2]
[330132055,1719029565213,-264.817082,0.00019178,2]
[330132056,1719029565224,-1301.181042,0.00019178,2]
[330132057,1719029565234,-219.242085,0.00019178,2]
[330132058,1719029565245,-500.0,0.00019452,2]
[330132059,1719029565256,-500.0,0.00019452,2]
[330132060,1719029565269,-500.0,0.00019726,2]
[330132061,1719029565280,-500.0,0.0002,2]
[330132062,1719029565290,-500.0,0.00020273,2]
[330132063,1719029565301,-500.0,0.00020547,2]
[330132064,1719029565311,-500.0,0.00020821,2]
[330132065,1719029565320,-155.0,0.00020861,2]
[330132066,1719029565330,-440278.30425717,0.00020999,2]
[330132067,1719029565342,-769.27445707,0.00020999,2]
[330132068,1719029565361,-365.15520006,0.00019726,2]
[330132069,1719029565380,-264.817082,0.00019178,2]
[330132070,1719029565390,-134.84479994,0.00019726,2]
[330132071,1719029565400,-8344.94683822,0.00020999,2]
[330132072,1719029565411,-620.53980725,0.00020999,2]
[330132073,1719029565428,-713.10704317,0.00020999,2]
[330132074,1719029565447,-1504.61649182,0.00020999,2]
[330132075,1719029565485,-14066.27093759,0.00020999,2]
[330132076,1719029608160,1000.0,0.00025986,120]
[330132077,1719030221116,150.0,0.00026,120]
[330132078,1719030328718,300.0,0.00026,120]
[330132102,1719030632764,-409.12146104,0.00012467,2]
[330132103,1719030632775,-199.13221831,0.00012467,2]
[330132104,1719030632785,-315.1601384,0.00013049,2]
[330132105,1719030632804,-159.80820083,0.00013049,2]
[330132106,1719030632813,-155.0,0.00013081,2]
[330132107,1719030632823,-269.73885961,0.00013082,2]